bitfinex/quotes_SOLUSD_20251116
["timestamp","ask_amount","ask_price","bid_price","bid_amount"]
[1763271091666,0.68,141.81,141.77,7.36855561]
[1763271092167,6.66855561,141.8,141.74,94.30684836]
[1763271092375,6.66855561,141.8,141.75,0.7]
[1763271092698,0.68,141.79,141.75,0.7]
[1763271093065,0.68,141.79,141.77,9.78882769]
[1763271095387,0.68,141.81,141.77,17.1573833]
[1763271095686,0.68,141.81,141.78,0.7]
[1763271095864,0.68,141.81,141.77,17.1573833]
[1763271097877,0.68,141.83,141.79,9.78882769]
[1763271098186,6.66855561,141.82,141.79,9.78882769]
[1763271098589,6.66855561,141.82,141.78,6.66855561]
[1763271098590,0.68,141.81,141.78,16.4573833]
[1763271098907,7.34855561,141.81,141.78,9.78882769]
[1763271101903,104.2,141.86,141.78,9.78882769]
[1763271102200,7.34855561,141.81,141.78,9.78882769]
[1763271103702,0.69,141.8,141.78,9.78882769]
[1763271104102,7.35855561,141.8,141.74,21.19766825]
[1763271104287,6.66855561,141.78,141.74,9.78882769]
[1763271104797,7.35855561,141.78,141.74,10.44882769]
[1763271108800,0.69,141.77,141.74,10.44882769]
[1763271112115,3.38315621,141.77,141.74,9.78882769]
[1763271112612,2.69315621,141.77,141.74,9.78882769]
[1763271112790,0.69,141.76,141.74,9.78882769]
[1763271113113,2.69315621,141.78,141.74,9.78882769]
[1763271113315,0.69,141.77,141.74,9.78882769]
[1763271118517,0.69,141.77,141.73,22.7512]
[1763271118702,2.69315621,141.76,141.73,22.7512]
[1763271119210,3.38315621,141.76,141.73,22.7512]
[1763271119408,3.38315621,141.75,141.73,0.1]
[1763271119794,3.38315621,141.74,141.73,0.1]
[1763271120312,3.38315621,141.74,141.72,0.1]
[1763271120514,6.07631242,141.73,141.71,0.1]
[1763271120825,3.38315621,141.72,141.71,0.1]
[1763271121191,6.07631242,141.72,141.71,0.1]
[1763271124808,0.69,141.72,141.71,0.1]
[1763271125012,6.07631242,141.72,141.71,0.1]
[1763271125522,3.38315621,141.72,141.71,0.1]
[1763271126421,6.07631242,141.72,141.71,0.1]
[1763271126923,2.41575722,141.72,141.71,0.1]
[1763271127920,22.6512,141.74,141.71,0.1]
[1763271128119,0.69,141.73,141.71,0.1]
[1763271128502,2.41575722,141.73,141.71,0.1]
[1763271129027,2.41575722,141.72,141.71,0.1]
[1763271129399,1.72575722,141.72,141.71,0.1]
[1763271131122,1.72575722,141.74,141.71,0.76]
[1763271131324,2.41575722,141.74,141.71,0.76]
[1763271132007,2.41575722,141.74,141.71,0.1]
[1763271132524,104.2,141.77,141.71,0.1]
[1763271132525,2.41575722,141.73,141.71,0.1]
[1763271133427,0.69,141.73,141.71,0.1]
[1763271133731,0.67,141.76,141.71,2.51575722]
[1763271133932,2.39575722,141.76,141.72,0.69]
[1763271134118,1.72575722,141.75,141.72,0.69]
[1763271135206,2.39575722,141.75,141.72,0.69]
[1763271136730,0.67,141.75,141.72,0.69]
[1763271136918,2.39575722,141.75,141.72,0.69]
[1763271139612,2.39575722,141.75,141.71,10.57882769]
[1763271140338,2.39575722,141.75,141.72,0.69]
[1763271140734,1.72575722,141.74,141.71,10.57882769]
[1763271140925,2.39575722,141.74,141.71,10.57882769]
[1763271141236,1.72575722,141.74,141.71,9.88882769]
[1763271141427,2.39575722,141.73,141.71,0.1]
[1763271143930,1.72575722,141.73,141.71,0.1]
[1763271144227,1.72575722,141.73,141.71,0.79]
[1763271146819,2.39575722,141.74,141.71,0.79]
[1763271147019,1.72575722,141.74,141.71,0.79]
[1763271147238,2.39575722,141.74,141.71,0.79]
[1763271147644,1.72575722,141.75,141.72,9.78882769]
[1763271147847,1.99999999,141.85,141.74,1.72575722]
[1763271147848,2.39575722,141.79,141.74,1.72575722]
[1763271148344,0.67,141.78,141.75,0.69]
[1763271148545,7.57302888,141.78,141.73,21.20515992]
[1763271148741,24.37695722,141.74,141.71,0.1]
[1763271148943,1.72575722,141.72,141.71,0.1]
[1763271149445,2.39575722,141.72,141.71,0.1]
[1763271149831,4.12151444,141.72,141.71,0.1]
[1763271152839,9.2987861,141.72,141.71,0.1]
[1763271154161,0.67,141.72,141.71,0.1]
[1763271154373,9.2987861,141.72,141.71,0.1]
[1763271157861,23.3212,141.73,141.71,0.1]
[1763271158073,1.72575722,141.72,141.71,0.1]
[1763271159247,2.39575722,141.72,141.71,0.1]
[1763271163458,4.12151444,141.72,141.71,0.1]
[1763271165051,9.2987861,141.72,141.71,0.1]
[1763271166582,9.2987861,141.72,141.7,0.1]
[1763271166778,2.40575722,141.71,141.7,0.1]
[1763271167164,24.37695722,141.7,141.69,0.1]
[1763271167347,25.05695722,141.7,141.69,0.1]
[1763271168386,25.05695722,141.7,141.68,0.1]
[1763271168554,2.40575722,141.69,141.68,0.1]
[1763271174575,25.05695722,141.69,141.68,0.1]
[1763271180690,22.6512,141.69,141.68,0.79]
[1763271180998,22.6512,141.69,141.68,0.1]
[1763271180999,25.05695722,141.69,141.68,0.1]
[1763271182163,24.37695722,141.69,141.68,0.1]
[1763271182359,1.72575722,141.69,141.68,0.1]
[1763271187399,1.72575722,141.69,141.68,0.79]
[1763271187582,1.72575722,141.69,141.68,0.1]
[1763271188702,1.72575722,141.69,141.68,0.79]
[1763271188901,2.69709581,141.69,141.68,0.79]
[1763271189292,2.69709581,141.69,141.68,0.1]
[1763271190984,2.69709581,141.69,141.68,0.79]
[1763271191184,2.69709581,141.7,141.68,0.79]
[1763271191388,23.3312,141.74,141.68,0.79]
[1763271191589,2.69709581,141.71,141.68,0.79]
[1763271191799,2.69709581,141.72,141.68,0.79]
[1763271192190,2.69709581,141.71,141.68,0.79]
[1763271192481,2.69709581,141.72,141.68,0.79]
[1763271193075,2.69709581,141.71,141.68,0.79]
[1763271194095,2.69709581,141.7,141.68,0.79]
[1763271195198,2.69709581,141.69,141.68,0.79]
[1763271195907,2.69709581,141.7,141.68,0.79]
[1763271199212,2.69709581,141.71,141.68,0.79]
[1763271201416,2.69709581,141.7,141.68,0.79]
[1763271202611,2.69709581,141.71,141.68,0.79]
[1763271203323,2.69709581,141.7,141.68,0.79]
[1763271208927,2.69709581,141.71,141.68,0.79]
[1763271209496,2.69709581,141.71,141.68,22.00265688]
[1763271209703,2.69709581,141.72,141.69,0.7]
[1763271212117,2.69709581,141.73,141.69,0.7]
[1763271212933,3.39709581,141.74,141.69,3.39709581]
[1763271213427,3.39709581,141.74,141.7,0.7]
[1763271215020,2.69709581,141.74,141.7,0.7]
[1763271215223,3.39709581,141.74,141.7,0.7]
[1763271216537,2.69709581,141.73,141.7,0.7]
[1763271217238,22.6512,141.77,141.72,2.69709581]
[1763271217435,2.69709581,141.75,141.71,9.78882769]
[1763271217617,2.69709581,141.75,141.71,31.69698576]
[1763271217816,3.39709581,141.75,141.72,0.7]
[1763271218222,0.7,141.75,141.72,0.7]
[1763271218424,3.39709581,141.75,141.72,0.7]
[1763271220020,2.69709581,141.76,141.72,0.7]
[1763271220419,3.39709581,141.76,141.72,0.7]
[1763271221039,0.7,141.75,141.72,0.7]
[1763271223246,3.39709581,141.76,141.72,0.7]
[1763271224750,2.69709581,141.76,141.72,0.7]
[1763271225060,2.69709581,141.74,141.72,0.67]
[1763271225350,3.41709581,141.75,141.72,0.67]
[1763271225549,0.72,141.75,141.72,0.67]
[1763271225953,3.41709581,141.75,141.72,0.67]
[1763271229337,2.69709581,141.75,141.72,0.67]
[1763271229935,2.69709581,141.75,141.72,3.4977544]
[1763271230143,3.41709581,141.75,141.72,3.4977544]
[1763271233025,0.72,141.75,141.72,3.4977544]
[1763271233231,3.41709581,141.75,141.72,3.4977544]
[1763271236254,2.69709581,141.76,141.73,0.67]
[1763271236452,3.41709581,141.76,141.73,0.67]
[1763271236757,0.72,141.75,141.72,2.8277544]
[1763271236937,0.72,141.75,141.72,3.4977544]
[1763271240054,3.41709581,141.76,141.73,0.67]
[1763271240257,3.41709581,141.76,141.72,2.8277544]
[1763271240564,0.72,141.75,141.72,3.4977544]
[1763271240862,2.69709581,141.73,141.68,62.57]
[1763271241062,0.72,141.75,141.7,2.69709581]
[1763271241237,0.72,141.74,141.7,2.69709581]
[1763271241565,0.72,141.74,141.71,0.67]
[1763271242061,3.41709581,141.75,141.71,21.87815807]
[1763271242358,0.72,141.77,141.71,31.63181893]
[1763271242562,2.69709581,141.76,141.72,0.67]
[1763271242739,2.69709581,141.76,141.72,21.87665889]
[1763271242944,2.69709581,141.78,141.73,3.36709581]
[1763271243360,3.41709581,141.78,141.74,0.67]
[1763271244551,3.41709581,141.77,141.74,0.67]
[1763271246143,2.69709581,141.78,141.74,0.67]
[1763271246439,3.41709581,141.78,141.74,0.67]
[1763271247572,3.41709581,141.78,141.74,3.36709581]
[1763271248668,0.72,141.77,141.74,3.36709581]
[1763271250472,0.72,141.77,141.74,0.67]
[1763271254274,2.43382086,141.78,141.74,0.67]
[1763271254854,1.72382086,141.82,141.77,1.72382086]
[1763271255055,0.2,141.84,141.8,1.72382086]
[1763271255056,0.71,141.83,141.8,1.72382086]
[1763271255686,0.71,141.83,141.8,4.54997693]
[1763271256379,0.71,141.83,141.8,5.19997693]
[1763271256569,0.71,141.83,141.81,1.72382086]
[1763271256755,0.71,141.83,141.81,21.19467307]
[1763271257176,0.71,141.83,141.8,1.72382086]
[1763271258174,0.71,141.83,141.8,22.91999141]
[1763271258881,0.71,141.83,141.8,21.19617055]
[1763271259667,2.43382086,141.83,141.8,21.19617055]
[1763271259986,2.43382086,141.83,141.76,11.51264855]
[1763271259987,1.72382086,141.81,141.76,11.51264855]
[1763271260160,1.92382086,141.84,141.76,33.36181471]
[1763271260161,1.72382086,141.8,141.76,33.36181471]
[1763271260682,0.71,141.79,141.76,2.37382086]
[1763271260864,0.71,141.79,141.76,9.4691043]
[1763271261463,1.72382086,141.8,141.76,7.74528344]
[1763271261716,2.43382086,141.79,141.74,10.43882769]
[1763271261870,2.43382086,141.79,141.75,2.37382086]
[1763271262072,0.71,141.78,141.75,21.20216262]
[1763271262388,0.71,141.78,141.74,12.16264855]
[1763271262582,0.71,141.78,141.75,7.09528344]
[1763271264567,2.43382086,141.78,141.73,2.37382086]
[1763271264766,0.71,141.78,141.73,23.57898078]
[1763271264985,0.71,141.77,141.74,2.37382086]
[1763271266592,0.71,141.77,141.74,0.65]
[1763271266798,0.71,141.77,141.74,2.37382086]
[1763271267006,2.43382086,141.78,141.74,2.37382086]
[1763271267172,0.71,141.78,141.74,1.72382086]
[1763271267368,1.72382086,141.8,141.75,2.37382086]
[1763271267588,0.71,141.79,141.75,2.37382086]
[1763271267790,2.43382086,141.79,141.75,2.37382086]
[1763271268300,1.72382086,141.79,141.75,2.37382086]
[1763271268589,0.71,141.78,141.75,2.37382086]
[1763271268997,2.43382086,141.79,141.75,2.37382086]
[1763271269174,0.71,141.78,141.75,0.65]
[1763271270597,2.43382086,141.8,141.75,0.65]
[1763271270901,2.43382086,141.8,141.76,1.72382086]
[1763271271100,2.43382086,141.8,141.76,2.37382086]
[1763271271583,1.72382086,141.8,141.77,0.65]
[1763271271781,126.8512,141.83,141.78,1.72382086]
[1763271271782,0.71,141.79,141.78,1.72382086]
[1763271272086,1.72382086,141.82,141.78,1.72382086]
[1763271272290,0.71,141.81,141.78,1.72382086]
[1763271274224,0.71,141.81,141.77,21.19916616]
[1763271274410,1.72382086,141.78,141.74,24.37502086]
[1763271274701,1.72382086,141.78,141.74,22.92598348]
[1763271275002,0.71,141.77,141.74,22.92598348]
[1763271276406,0.71,141.77,141.74,21.20216262]
[1763271280906,0.71,141.77,141.74,22.92598348]
[1763271282226,0.71,141.77,141.74,21.20216262]
[1763271283786,2.43382086,141.77,141.73,11.51264855]
[1763271283991,0.68,141.76,141.73,30.99248885]
[1763271285304,2.40382086,141.76,141.72,22.6512]
[1763271285705,0.68,141.75,141.72,22.6512]
[1763271286098,0.68,141.75,141.72,25.09502086]
[1763271286296,0.68,141.75,141.72,24.37502086]
[1763271287313,1.72382086,141.74,141.7,9.78882769]
[1763271287512,1.72382086,141.74,141.69,1.72382086]
[1763271287716,0.68,141.73,141.69,22.93347832]
[1763271288124,0.68,141.73,141.69,1.72382086]
[1763271288329,0.68,141.73,141.7,6.89528344]
[1763271288912,2.40382086,141.73,141.7,6.89528344]
[1763271289126,0.68,141.73,141.69,2.44382086]
[1763271289328,0.68,141.72,141.69,2.44382086]
[1763271289635,0.68,141.72,141.69,23.65347832]
[1763271290131,0.68,141.72,141.69,2.44382086]
[1763271290330,0.68,141.72,141.7,6.89528344]
[1763271290717,0.68,141.72,141.69,2.44382086]
[1763271290916,0.68,141.72,141.69,9.3391043]
[1763271295838,0.68,141.72,141.68,1.82382086]
[1763271296029,0.68,141.72,141.68,2.54382086]
[1763271296227,2.40382086,141.72,141.68,23.75497792]
[1763271296423,0.68,141.71,141.68,23.75497792]
[1763271300345,0.68,141.71,141.69,1.72382086]
[1763271300857,1.72382086,141.73,141.69,1.72382086]
[1763271301047,0.68,141.72,141.69,2.44382086]
[1763271301443,0.68,141.72,141.69,0.72]
[1763271302145,2.40382086,141.74,141.7,1.72382086]
[1763271302325,0.68,141.73,141.7,1.72382086]
[1763271302525,0.68,141.76,141.72,24.37502086]
[1763271302920,2.40382086,141.76,141.72,45.58167975]
[1763271303344,0.68,141.75,141.72,45.58167975]
[1763271304527,0.68,141.77,141.73,2.44382086]
[1763271304929,1.72382086,141.76,141.73,21.20515992]
[1763271305132,1.72382086,141.76,141.71,1.72382086]
[1763271305332,0.68,141.75,141.71,1.72382086]
[1763271305524,0.68,141.75,141.71,2.44382086]
[1763271305943,0.68,141.75,141.72,21.20665889]
[1763271306145,0.68,141.75,141.73,1.72382086]
[1763271309958,0.68,141.79,141.74,2.44382086]
[1763271310252,0.68,141.79,141.74,21.92216262]
[1763271310638,0.68,141.79,141.76,1.72382086]
[1763271311336,0.68,141.79,141.77,1.72382086]
[1763271312841,0.68,141.79,141.77,2.692422]
[1763271314266,0.68,141.79,141.76,23.89308628]
[1763271314439,0.68,141.79,141.76,2.692422]
[1763271315350,0.68,141.79,141.77,2.692422]
[1763271317338,0.68,141.79,141.76,2.692422]
[1763271318756,0.68,141.79,141.77,2.692422]
[1763271321855,0.68,141.79,141.76,2.692422]
[1763271323758,0.68,141.79,141.77,2.692422]
[1763271323947,0.68,141.79,141.78,2.692422]
[1763271325746,0.68,141.79,141.77,2.692422]
[1763271329962,0.68,141.79,141.76,21.20216262]
[1763271330161,0.68,141.79,141.77,2.692422]
[1763271330343,0.68,141.79,141.76,21.20216262]
[1763271330666,0.68,141.79,141.77,2.692422]
[1763271330869,0.2,141.84,141.78,28.036044]
[1763271331166,0.2,141.84,141.83,2.692422]
[1763271331672,0.87,141.84,141.8,0.69]
[1763271331839,0.87,141.84,141.83,2.692422]
[1763271332944,0.87,141.84,141.82,5.51817877]
[1763271335363,0.87,141.84,141.81,0.69]
[1763271335663,0.87,141.84,141.83,2.692422]
[1763271335664,0.2,141.84,141.83,2.692422]
[1763271336074,0.2,141.84,141.83,3.382422]
[1763271336246,0.2,141.84,141.83,5.51817877]
[1763271339368,0.2,141.84,141.83,2.82575677]
[1763271339547,0.2,141.84,141.83,5.51817877]
[1763271342278,0.2,141.84,141.83,6.20817877]
[1763271342578,0.2,141.84,141.83,5.51817877]
[1763271342778,0.2,141.84,141.83,6.20817877]
[1763271343454,0.2,141.84,141.83,15.99700646]
[1763271346063,0.2,141.84,141.83,13.30458446]
[1763271347562,0.2,141.84,141.83,15.99700646]
[1763271349077,0.2,141.84,141.83,23.04770095]
[1763271350782,0.2,141.84,141.83,25.74012295]
[1763271350967,0.2,141.86,141.85,32.44002769]
[1763271351161,0.2,141.86,141.85,35.13244969]
[1763271351366,0.2,141.86,141.85,35.80244969]
[1763271351575,0.2,141.86,141.85,38.62661038]
[1763271352278,0.2,141.86,141.85,45.67631076]
[1763271356590,0.2,141.86,141.85,107.47631076]
[1763271357688,0.2,141.86,141.85,84.82511076]
[1763271359687,0.2,141.86,141.85,23.02511076]
[1763271362291,0.2,141.86,141.85,84.82511076]
[1763271362679,0.2,141.88,141.87,12.48124969]
[1763271363197,0.2,141.88,141.87,13.15124969]
[1763271363379,0.2,141.88,141.87,15.97501164]
[1763271364069,0.88,141.88,141.87,35.26378964]
[1763271364977,3.572422,141.88,141.87,2.82376195]
[1763271365171,3.572422,141.88,141.84,9.78882769]
[1763271365485,3.372422,141.87,141.84,12.6135867]
[1763271365686,0.68,141.87,141.84,9.78882769]
[1763271365862,0.68,141.86,141.85,13.16124969]
[1763271366587,0.68,141.86,141.85,3.372422]
[1763271366811,0.68,141.86,141.83,9.78882769]
[1763271367295,0.68,141.86,141.84,2.892422]
[1763271367879,2.692422,141.85,141.82,22.6512]
[1763271368087,2.692422,141.85,141.83,2.82555716]
[1763271368292,0.68,141.84,141.83,2.82555716]
[1763271368593,0.68,141.84,141.82,22.6512]
[1763271368778,0.68,141.84,141.82,25.47675716]
[1763271368981,2.692422,141.83,141.78,12.48124969]
[1763271369196,0.68,141.82,141.79,2.692422]
[1763271369403,0.68,141.82,141.81,25.4771564]
[1763271373401,0.68,141.84,141.81,27.19940983]
[1763271373578,0.7,141.83,141.81,27.19940983]
[1763271373778,0.7,141.83,141.81,22.6512]
[1763271374007,0.7,141.83,141.82,2.82575677]
[1763271374730,0.7,141.87,141.83,9.78882769]
[1763271375214,0.7,141.87,141.84,1.72225343]
[1763271375397,0.7,141.87,141.84,4.54721193]
[1763271375708,0.7,141.87,141.84,1.72225343]
[1763271376212,0.7,141.87,141.85,10.48882769]
[1763271379618,0.7,141.87,141.84,1.72225343]
[1763271380114,0.7,141.87,141.85,2.8249585]
[1763271382306,2.42225343,141.87,141.83,11.51108112]
[1763271382605,2.42225343,141.87,141.84,2.82515803]
[1763271382807,0.7,141.86,141.84,2.82515803]
[1763271384417,0.7,141.86,141.84,4.54741146]
[1763271384791,0.7,141.86,141.84,1.72225343]
[1763271384994,0.7,141.86,141.85,2.82515803]
[1763271385534,0.7,141.86,141.84,4.54741146]
[1763271386124,0.7,141.86,141.84,2.82515803]
[1763271387131,0.7,141.86,141.82,1.72225343]
[1763271387132,1.72225343,141.85,141.82,2.82555716]
[1763271387430,1.72225343,141.84,141.8,22.6512]
[1763271387730,1.72225343,141.84,141.81,2.82575677]
[1763271387919,0.7,141.83,141.82,22.6512]
[1763271388240,0.7,141.83,141.79,9.78882769]
[1763271388241,2.42225343,141.83,141.79,9.78882769]
[1763271388518,1.72225343,141.82,141.8,2.8259564]
[1763271388825,2.42225343,141.82,141.8,2.8259564]
[1763271389028,0.7,141.81,141.8,2.8259564]
[1763271390221,0.7,141.81,141.78,1.72225343]
[1763271390528,0.7,141.81,141.79,2.82615607]
[1763271391203,0.7,141.81,141.79,4.5484095]
[1763271393228,0.7,141.81,141.79,1.72225343]
[1763271393520,0.7,141.81,141.8,2.82615607]
[1763271393825,0.7,141.83,141.8,4.5484095]
[1763271394034,0.7,141.83,141.81,1.72225343]
[1763271394906,0.7,141.83,141.81,4.5480102]
[1763271396612,0.7,141.86,141.82,2.42225343]
[1763271396813,0.9,141.88,141.84,1.72225343]
[1763271397117,0.7,141.87,141.84,1.72225343]
[1763271397632,0.7,141.87,141.84,4.54741146]
[1763271399332,0.7,141.87,141.85,1.72225343]
[1763271399716,0.7,141.87,141.85,2.8249585]
[1763271400236,0.7,141.87,141.84,1.72225343]
[1763271401118,0.7,141.87,141.84,4.54741146]
[1763271406538,0.7,141.87,141.84,2.82515803]
[1763271406841,1.72225343,141.86,141.82,22.6512]
[1763271407026,1.72225343,141.86,141.83,2.82535758]
[1763271407210,0.69,141.85,141.82,22.6512]
[1763271407625,0.69,141.85,141.82,25.47675716]
[1763271409351,0.69,141.85,141.82,27.19901059]
[1763271417839,0.69,141.85,141.83,2.82555716]
[1763271421824,1.72225343,141.84,141.78,5.87651399]
[1763271422025,1.72225343,141.8,141.78,2.82635576]
[1763271422225,1.72225343,141.79,141.75,0.66]
[1763271422419,1.72225343,141.78,141.73,15.31410685]
[1763271422630,1.72225343,141.78,141.75,6.88901372]
[1763271422851,0.69,141.77,141.75,6.88901372]
[1763271423150,1.72225343,141.81,141.76,2.38225343]
[1763271423544,2.41225343,141.8,141.76,0.66]
[1763271423743,2.41225343,141.8,141.76,7.54901372]
[1763271423948,0.69,141.79,141.76,7.54901372]
[1763271424331,0.69,141.79,141.76,2.38225343]
[1763271424530,0.69,141.8,141.77,31.92246715]
[1763271424730,0.69,141.8,141.77,30.20021372]
[1763271424952,0.69,141.8,141.77,29.54021372]
[1763271427564,2.41225343,141.8,141.77,29.54021372]
[1763271428050,0.69,141.79,141.77,29.54021372]
[1763271429152,1.72225343,141.81,141.77,29.54021372]
[1763271429461,0.69,141.8,141.77,29.54021372]
[1763271430038,0.69,141.8,141.77,30.20021372]
[1763271430241,0.69,141.8,141.77,29.54021372]
[1763271433950,2.41225343,141.8,141.77,29.54021372]
[1763271434350,0.69,141.79,141.77,29.54021372]
[1763271434546,0.69,141.79,141.77,31.26246715]
[1763271434853,0.69,141.79,141.77,32.23239425]
[1763271435050,0.69,141.79,141.77,29.54021372]
[1763271436146,0.69,141.79,141.77,25.34338053]
[1763271436556,0.69,141.79,141.78,2.82655548]
[1763271437467,3.38218053,141.82,141.78,3.50655548]
[1763271437773,104.2,141.85,141.79,3.37218053]
[1763271437774,0.69,141.84,141.79,3.37218053]
[1763271437949,3.38218053,141.84,141.8,2.69218053]
[1763271438357,3.38218053,141.83,141.79,22.6512]
[1763271438669,2.69218053,141.81,141.77,2.82655548]
[1763271439054,0.69,141.8,141.77,2.82655548]
[1763271439380,0.69,141.8,141.77,3.50655548]
[1763271439557,0.69,141.8,141.77,2.82655548]
[1763271440144,0.69,141.8,141.75,9.78882769]
[1763271440346,2.69218053,141.79,141.76,2.82675523]
[1763271440564,3.38218053,141.78,141.76,2.82675523]
[1763271440744,3.38218053,141.78,141.73,3.37218053]
[1763271440954,0.69,141.77,141.74,16.84485649]
[1763271442356,0.69,141.77,141.74,20.21703702]
[1763271444087,0.69,141.77,141.75,2.69218053]
[1763271444380,2.69218053,141.79,141.75,2.69218053]
[1763271444588,0.69,141.79,141.76,2.69218053]
[1763271445384,0.69,141.79,141.76,20.21703702]
[1763271446860,0.69,141.79,141.76,17.52485649]
[1763271448869,0.69,141.79,141.75,3.37218053]
[1763271449197,0.69,141.79,141.75,20.89703702]
[1763271451392,104.2,141.83,141.76,3.37218053]
[1763271451393,3.38218053,141.81,141.76,3.37218053]
[1763271451605,2.69218053,141.81,141.77,3.37218053]
[1763271451807,0.69,141.8,141.77,3.37218053]
[1763271452604,0.69,141.82,141.79,2.69218053]
[1763271453190,0.69,141.82,141.79,3.37218053]
[1763271453389,0.69,141.82,141.8,21.19617055]
[1763271454290,0.69,141.82,141.78,22.6512]
[1763271454472,0.69,141.82,141.79,43.84737055]
[1763271456295,0.69,141.82,141.79,46.53955108]
[1763271459196,3.38218053,141.82,141.77,2.69218053]
[1763271459496,2.69218053,141.81,141.77,21.19916616]
[1763271459694,3.38218053,141.81,141.77,21.19916616]
[1763271459896,0.69,141.8,141.77,21.19916616]
[1763271460683,2.69218053,141.79,141.77,21.19916616]
[1763271460884,2.69218053,141.78,141.73,5.87651399]
[1763271461076,2.69218053,141.76,141.74,21.19916616]
[1763271461476,0.69,141.75,141.72,6.55651399]
[1763271461676,0.69,141.75,141.73,21.19916616]
[1763271462094,3.38218053,141.75,141.73,21.19916616]
[1763271462720,0.69,141.74,141.71,5.87651399]
[1763271463016,0.69,141.74,141.72,21.20665889]
[1763271463377,0.69,141.74,141.71,5.87651399]
[1763271463691,0.69,141.74,141.72,2.8277544]
[1763271464398,0.69,141.74,141.7,8.56869452]
[1763271464399,3.38218053,141.74,141.7,8.56869452]
[1763271464707,0.69,141.74,141.71,10.45882769]
[1763271464900,0.69,141.74,141.71,13.15100822]
[1763271465081,0.69,141.74,141.71,9.23869452]
[1763271465282,0.69,141.74,141.71,3.36218053]
[1763271465880,0.69,141.74,141.72,21.20815807]
[1763271466207,0.69,141.74,141.7,18.35752221]
[1763271466411,0.69,141.74,141.71,21.87815807]
[1763271466806,0.69,141.74,141.71,0.67]
[1763271467105,0.69,141.74,141.72,21.20815807]
[1763271467301,3.40218053,141.76,141.72,23.9003386]
[1763271467607,3.40218053,141.76,141.72,24.5703386]
[1763271467780,0.71,141.75,141.72,24.5703386]
[1763271471411,3.40218053,141.75,141.72,21.87815807]
[1763271473795,0.71,141.74,141.72,21.20815807]
[1763271474108,2.69218053,141.76,141.72,21.20815807]
[1763271474411,0.71,141.75,141.72,21.20815807]
[1763271475113,0.71,141.75,141.72,21.87815807]
[1763271475412,0.71,141.75,141.72,21.20815807]
[1763271476110,0.71,141.75,141.72,24.5703386]
[1763271477212,0.71,141.75,141.72,21.87815807]
[1763271479301,0.71,141.75,141.72,24.5703386]
[1763271480218,0.71,141.77,141.73,3.36218053]
[1763271480390,0.71,141.77,141.74,2.69218053]
[1763271480591,0.71,141.77,141.74,21.20515992]
[1763271481113,0.71,141.77,141.74,23.89734045]
[1763271481313,0.71,141.77,141.74,24.56734045]
[1763271481508,0.71,141.77,141.74,3.36218053]
[1763271481706,0.71,141.79,141.75,24.56584169]
[1763271481916,104.2,141.8,141.75,24.56584169]
[1763271481917,0.71,141.78,141.75,24.56584169]
[1763271482089,0.71,141.78,141.75,3.36218053]
[1763271482795,0.71,141.78,141.76,12.48100822]
[1763271484316,2.69218053,141.8,141.76,15.17318875]
[1763271484521,0.71,141.79,141.76,15.84318875]
[1763271484724,0.71,141.79,141.76,3.36218053]
[1763271484909,0.71,141.79,141.77,21.20066428]
[1763271487634,2.69218053,141.82,141.78,3.36218053]
[1763271487928,104.2,141.85,141.8,2.69218053]
[1763271487929,2.69218053,141.85,141.8,2.69218053]
[1763271488150,128.29134669,141.9,141.8,2.69218053]
[1763271488151,3.40218053,141.84,141.8,2.69218053]
[1763271488302,2.69218053,141.83,141.79,21.19467307]
[1763271488499,2.69218053,141.82,141.79,21.19467307]
[1763271488720,2.69218053,141.81,141.79,21.19467307]
[1763271488898,3.40218053,141.81,141.79,21.19467307]
[1763271489102,0.71,141.8,141.79,21.19467307]